[Event "Live Chess"]
[Site "Chess.com"]
[Date "2024.06.01"]
[Round "-"]
[White "peteopeteo"]
[Black "StoreySniper"]
[Result "0-1"]
[WhiteElo "1574"]
[BlackElo "2529"]
[TimeControl "300"]
[EndTime "14:40:12 PDT"]
[Termination "StoreySniper won by resignation"]

1. e4 {[%clk 0:04:58.9]} 1... g6 {[%clk 0:04:58.6]} 2. d4 {[%clk 0:04:58]} 2...
Bg7 {[%clk 0:04:58.5]} 3. Be3 {[%clk 0:04:57.3]} 3... c5 {[%clk 0:04:58.1]} 4.
Nf3 {[%clk 0:04:55.2]} 4... Qa5+ {[%clk 0:04:56.2]} 5. Nc3 {[%clk 0:04:47]} 5...
Nf6 {[%clk 0:04:54.6]} 6. e5 {[%clk 0:04:28.2]} 6... Ne4 {[%clk 0:04:51.3]} 7.
Qd3 {[%clk 0:04:25.2]} 7... Nxc3 {[%clk 0:04:47.9]} 8. Qxc3 {[%clk 0:04:23.4]}
8... Qxc3+ {[%clk 0:04:45.9]} 9. bxc3 {[%clk 0:04:23.3]} 9... Nc6 {[%clk
0:04:44.7]} 10. Bd3 {[%clk 0:04:13.4]} 10... O-O {[%clk 0:04:41.9]} 11. O-O
{[%clk 0:04:01.9]} 11... b6 {[%clk 0:04:40.7]} 12. Rfd1 {[%clk 0:03:36.3]} 12...
Bb7 {[%clk 0:04:35]} 13. Bf4 {[%clk 0:03:29.3]} 13... Rfd8 {[%clk 0:04:25.8]}
14. d5 {[%clk 0:03:25.1]} 14... Na5 {[%clk 0:04:23.7]} 15. c4 {[%clk 0:03:08.7]}
15... d6 {[%clk 0:04:20.4]} 16. Rab1 {[%clk 0:02:56.2]} 16... Ba6 {[%clk
0:04:18.8]} 17. exd6 {[%clk 0:02:43.1]} 17... exd6 {[%clk 0:04:17.7]} 18. Nd2
{[%clk 0:02:34.2]} 18... Bc3 {[%clk 0:04:16.5]} 19. Re1 {[%clk 0:02:23.5]} 19...
Bxd2 {[%clk 0:04:10.3]} 20. Bxd2 {[%clk 0:02:23.4]} 20... Nxc4 {[%clk 0:04:08]}
21. Bc3 {[%clk 0:02:15.8]} 21... b5 {[%clk 0:04:00.5]} 22. Re7 {[%clk
0:01:57.8]} 22... Nb6 {[%clk 0:03:52.8]} 23. Bxb5 {[%clk 0:01:50]} 23... Bxb5
{[%clk 0:03:51]} 24. Rxb5 {[%clk 0:01:49.9]} 24... Nxd5 {[%clk 0:03:50.2]} 25.
Rbb7 {[%clk 0:01:45.4]} 25... Nxe7 {[%clk 0:03:46.6]} 26. Rxe7 {[%clk
0:01:44.5]} 26... Re8 {[%clk 0:03:44.9]} 27. Bf6 {[%clk 0:01:39.6]} 27... Rxe7
{[%clk 0:03:43.5]} 28. Bxe7 {[%clk 0:01:39.5]} 28... Re8 {[%clk 0:03:42.6]} 0-1

[Event "Live Chess"]
[Site "Chess.com"]
[Date "2024.06.01"]
[Round "-"]
[White "McFim"]
[Black "MagnersCarlsberg2870"]
[Result "1-0"]
[WhiteElo "1623"]
[BlackElo "1758"]
[TimeControl "300"]
[EndTime "14:40:15 PDT"]
[Termination "McFim won by resignation"]

1. e4 {[%clk 0:04:57]} 1... e5 {[%clk 0:04:58.4]} 2. Nf3 {[%clk 0:04:55.7]} 2...
Nf6 {[%clk 0:04:56.5]} 3. Nxe5 {[%clk 0:04:54.2]} 3... Nc6 {[%clk 0:04:54.6]} 4.
Nxc6 {[%clk 0:04:53]} 4... dxc6 {[%clk 0:04:53.6]} 5. Nc3 {[%clk 0:04:52.4]}
5... Bc5 {[%clk 0:04:51.6]} 6. h3 {[%clk 0:04:51.2]} 6... Qd4 {[%clk 0:04:50]}
7. Qf3 {[%clk 0:04:48.8]} 7... O-O {[%clk 0:04:42.3]} 8. d3 {[%clk 0:04:47.2]}
8... Qd6 {[%clk 0:04:30.5]} 9. Bd2 {[%clk 0:04:31.1]} 9... Be6 {[%clk
0:04:26.3]} 10. a3 {[%clk 0:04:29.2]} 10... a5 {[%clk 0:04:23.5]} 11. g3 {[%clk
0:04:27.8]} 11... b5 {[%clk 0:04:18.4]} 12. Bg2 {[%clk 0:04:23]} 12... b4 {[%clk
0:04:16]} 13. axb4 {[%clk 0:04:21]} 13... axb4 {[%clk 0:04:15.1]} 14. Rxa8
{[%clk 0:04:17.9]} 14... Rxa8 {[%clk 0:04:13.6]} 15. Nd1 {[%clk 0:04:13.7]}
15... Ra1 {[%clk 0:04:05.9]} 16. O-O {[%clk 0:04:12.1]} 16... Qd7 {[%clk
0:03:59.4]} 17. Kh2 {[%clk 0:04:09.6]} 17... h6 {[%clk 0:03:50.1]} 18. Qe2
{[%clk 0:04:01.3]} 18... Kh8 {[%clk 0:03:28.8]} 19. f4 {[%clk 0:03:54.9]} 19...
Qe7 {[%clk 0:03:08.8]} 20. Be3 {[%clk 0:03:26.8]} 20... Bxe3 {[%clk 0:03:06.6]}
21. Nxe3 {[%clk 0:03:24.5]} 21... Rxf1 {[%clk 0:03:04.1]} 22. Nxf1 {[%clk
0:03:22.1]} 22... Nd7 {[%clk 0:03:01.8]} 23. d4 {[%clk 0:03:03.8]} 23... Qf6
{[%clk 0:02:49.8]} 24. c3 {[%clk 0:03:00.1]} 24... bxc3 {[%clk 0:02:47.9]} 25.
bxc3 {[%clk 0:02:58.4]} 25... Nb6 {[%clk 0:02:43]} 26. e5 {[%clk 0:02:51.6]}
26... Qf5 {[%clk 0:02:38.3]} 27. Qe4 {[%clk 0:02:42.6]} 27... Nd5 {[%clk
0:02:31.5]} 28. Qxf5 {[%clk 0:02:37.7]} 28... Bxf5 {[%clk 0:02:29.6]} 29. c4
{[%clk 0:02:31.9]} 29... Nb6 {[%clk 0:02:25.3]} 30. Ne3 {[%clk 0:02:25.3]} 30...
Bd3 {[%clk 0:02:22.2]} 31. c5 {[%clk 0:02:19.7]} 31... Nc4 {[%clk 0:02:05.1]}
32. Nxc4 {[%clk 0:02:17.9]} 32... Bxc4 {[%clk 0:02:03.8]} 33. Bxc6 {[%clk
0:02:17]} 33... Kg8 {[%clk 0:02:01.1]} 34. d5 {[%clk 0:02:13.3]} 34... Kf8
{[%clk 0:01:59]} 35. d6 {[%clk 0:02:12.1]} 35... cxd6 {[%clk 0:01:57.2]} 36.
cxd6 {[%clk 0:02:09.2]} 36... Be6 {[%clk 0:01:52]} 37. g4 {[%clk 0:02:02.4]}
37... f6 {[%clk 0:01:50.7]} 38. Kg3 {[%clk 0:02:00.5]} 38... g5 {[%clk 0:01:48]}
39. f5 {[%clk 0:01:57.9]} 1-0

[Event "Live Chess"]
[Site "Chess.com"]
[Date "2024.06.01"]
[Round "-"]
[White "agamilewska"]
[Black "KnightStripes"]
[Result "1-0"]
[WhiteElo "1764"]
[BlackElo "903"]
[TimeControl "300"]
[EndTime "14:40:18 PDT"]
[Termination "agamilewska won by checkmate"]

1. e4 {[%clk 0:04:57.8]} 1... c6 {[%clk 0:04:58.3]} 2. d4 {[%clk 0:04:56.9]}
2... d5 {[%clk 0:04:57.4]} 3. exd5 {[%clk 0:04:56.1]} 3... cxd5 {[%clk
0:04:56.2]} 4. Nc3 {[%clk 0:04:55.4]} 4... Nf6 {[%clk 0:04:54.4]} 5. Nf3 {[%clk
0:04:54.9]} 5... Bg4 {[%clk 0:04:48.9]} 6. Bb5+ {[%clk 0:04:53.6]} 6... Nc6
{[%clk 0:04:47.3]} 7. h3 {[%clk 0:04:51.4]} 7... Bxf3 {[%clk 0:04:45.2]} 8. Qxf3
{[%clk 0:04:50.9]} 8... Qb6 {[%clk 0:04:44.6]} 9. Bxc6+ {[%clk 0:04:47.5]} 9...
Qxc6 {[%clk 0:04:38.5]} 10. O-O {[%clk 0:04:46.8]} 10... e6 {[%clk 0:04:37.3]}
11. Bg5 {[%clk 0:04:45.8]} 11... Be7 {[%clk 0:04:35.9]} 12. Bxf6 {[%clk
0:04:44.1]} 12... Bxf6 {[%clk 0:04:34.6]} 13. Rfe1 {[%clk 0:04:43]} 13... O-O
{[%clk 0:04:32.9]} 14. Rad1 {[%clk 0:04:40.5]} 14... Qb6 {[%clk 0:04:18.8]} 15.
Qg4 {[%clk 0:04:20.7]} 15... Bxd4 {[%clk 0:04:12.4]} 16. Qxd4 {[%clk 0:04:15.4]}
16... Qxb2 {[%clk 0:04:08.3]} 17. Re3 {[%clk 0:03:53.8]} 17... Qxc2 {[%clk
0:04:06]} 18. Rg3 {[%clk 0:03:47.8]} 18... f6 {[%clk 0:03:54.3]} 19. Nxd5 {[%clk
0:03:42.6]} 19... exd5 {[%clk 0:03:48.7]} 20. Qxd5+ {[%clk 0:03:41]} 20... Kh8
{[%clk 0:03:36.5]} 21. Qd7 {[%clk 0:03:38.7]} 21... Rab8 {[%clk 0:03:29.7]} 22.
Qxg7# {[%clk 0:03:36.2]} 1-0

[Event "Live Chess"]
[Site "Chess.com"]
[Date "2024.06.01"]
[Round "-"]
[White "jellhhggffhjjjjjj"]
[Black "road2gm5000"]
[Result "0-1"]
[WhiteElo "404"]
[BlackElo "1092"]
[TimeControl "300"]
[EndTime "14:40:42 PDT"]
[Termination "road2gm5000 won by checkmate"]

1. d4 {[%clk 0:04:54.3]} 1... d5 {[%clk 0:04:58.7]} 2. Nf3 {[%clk 0:04:52.4]}
2... Nf6 {[%clk 0:04:57]} 3. Bf4 {[%clk 0:04:51.4]} 3... Bg4 {[%clk 0:04:56]} 4.
e3 {[%clk 0:04:50]} 4... e6 {[%clk 0:04:55.1]} 5. h3 {[%clk 0:04:49]} 5... Bh5
{[%clk 0:04:53.7]} 6. g4 {[%clk 0:04:45.1]} 6... Bg6 {[%clk 0:04:52.5]} 7. Nh4
{[%clk 0:04:43.2]} 7... Be4 {[%clk 0:04:51.1]} 8. Rg1 {[%clk 0:04:39.4]} 8... c5
{[%clk 0:04:48.1]} 9. c3 {[%clk 0:04:35.5]} 9... cxd4 {[%clk 0:04:44.6]} 10.
cxd4 {[%clk 0:04:34.2]} 10... Qa5+ {[%clk 0:04:43.8]} 11. Nc3 {[%clk 0:04:31.4]}
11... Bb4 {[%clk 0:04:42.6]} 12. Qd2 {[%clk 0:04:29.2]} 12... Bxc3 {[%clk
0:04:31.8]} 13. Qxc3 {[%clk 0:04:27.7]} 13... Qxc3+ {[%clk 0:04:30.6]} 14. bxc3
{[%clk 0:04:27.2]} 14... Nc6 {[%clk 0:04:29.7]} 15. Bg2 {[%clk 0:04:25.6]} 15...
Bxg2 {[%clk 0:04:27.7]} 16. Rxg2 {[%clk 0:04:21.8]} 16... Ne4 {[%clk 0:04:26.8]}
17. Ke2 {[%clk 0:04:10.6]} 17... Nxc3+ {[%clk 0:04:24.3]} 18. Kf3 {[%clk
0:04:08.8]} 18... Ne4 {[%clk 0:04:21.6]} 19. g5 {[%clk 0:04:03.5]} 19... g6
{[%clk 0:04:18.8]} 20. Rb1 {[%clk 0:03:57.6]} 20... Nd2+ {[%clk 0:04:17.4]} 21.
Ke2 {[%clk 0:03:46.7]} 21... Nxb1 {[%clk 0:04:17.3]} 22. Rg1 {[%clk 0:03:38.3]}
22... Nc3+ {[%clk 0:04:13.1]} 23. Kd3 {[%clk 0:03:35.6]} 23... Ne4 {[%clk
0:04:11.8]} 24. f3 {[%clk 0:03:32.1]} 24... Ne5+ {[%clk 0:04:11.7]} 25. Bxe5
{[%clk 0:03:24.6]} 25... Nf2+ {[%clk 0:03:58.5]} 26. Ke2 {[%clk 0:03:14.5]}
26... Nxh3 {[%clk 0:03:56.7]} 27. Rg3 {[%clk 0:03:12.6]} 27... Nxg5 {[%clk
0:03:54.2]} 28. Rxg5 {[%clk 0:03:06.1]} 28... Rf8 {[%clk 0:03:50.5]} 29. Kd3
{[%clk 0:03:00.2]} 29... f6 {[%clk 0:03:46.8]} 30. Bxf6 {[%clk 0:02:51]} 30...
Rxf6 {[%clk 0:03:45.9]} 31. Re5 {[%clk 0:02:48.8]} 31... O-O-O {[%clk
0:03:44.2]} 32. Ng2 {[%clk 0:02:42]} 32... Re8 {[%clk 0:03:42.3]} 33. Nf4 {[%clk
0:02:40.1]} 33... g5 {[%clk 0:03:39.2]} 34. Nxd5 {[%clk 0:02:34.5]} 34... Rxf3
{[%clk 0:03:33.1]} 35. Ke2 {[%clk 0:02:19.1]} 35... Rf5 {[%clk 0:03:27.5]} 36.
Rxf5 {[%clk 0:01:51.4]} 36... exf5 {[%clk 0:03:27.4]} 37. Kf3 {[%clk 0:01:49.4]}
37... h5 {[%clk 0:03:22.6]} 38. Nf6 {[%clk 0:01:42.9]} 38... Rh8 {[%clk
0:03:21.3]} 39. Nd5 {[%clk 0:01:33.8]} 39... h4 {[%clk 0:03:17.2]} 40. Ne7+
{[%clk 0:01:29.3]} 40... Kd7 {[%clk 0:03:16.4]} 41. Ng6 {[%clk 0:01:26.2]} 41...
Rh6 {[%clk 0:03:11.2]} 42. Ne5+ {[%clk 0:01:18.9]} 42... Ke6 {[%clk 0:03:10.5]}
43. Kg2 {[%clk 0:01:09.8]} 43... h3+ {[%clk 0:03:07.9]} 44. Kh2 {[%clk
0:01:08.3]} 44... g4 {[%clk 0:03:07.3]} 45. Kg3 {[%clk 0:01:05.9]} 45... h2
{[%clk 0:03:05.2]} 46. Nxg4 {[%clk 0:00:47.3]} 46... fxg4 {[%clk 0:03:02.6]} 47.
Kf4 {[%clk 0:00:43.2]} 47... h1=Q {[%clk 0:03:02.5]} 48. d5+ {[%clk 0:00:38.1]}
48... Kxd5 {[%clk 0:03:00.5]} 49. a4 {[%clk 0:00:35.7]} 49... Qe4+ {[%clk
0:02:59.4]} 50. Kg3 {[%clk 0:00:33.4]} 50... Rh3+ {[%clk 0:02:58.9]} 51. Kf2
{[%clk 0:00:30.4]} 51... Qf3+ {[%clk 0:02:56.7]} 52. Ke1 {[%clk 0:00:28.5]}
52... Rh1+ {[%clk 0:02:54.5]} 53. Kd2 {[%clk 0:00:26.7]} 53... Rd1+ {[%clk
0:02:52.4]} 54. Kc3 {[%clk 0:00:24.9]} 54... Qxe3+ {[%clk 0:02:51.7]} 55. Kb2
{[%clk 0:00:23.1]} 55... Qc1+ {[%clk 0:02:46.6]} 56. Kb3 {[%clk 0:00:17.3]}
56... Rd3+ {[%clk 0:02:43.8]} 57. Ka2 {[%clk 0:00:15.6]} 57... Ra3# {[%clk
0:02:40.1]} 0-1

[Event "Live Chess"]
[Site "Chess.com"]
[Date "2024.06.01"]
[Round "-"]
[White "lyricalschemes"]
[Black "FlyingChessKestrel13"]
[Result "1-0"]
[WhiteElo "2425"]
[BlackElo "2058"]
[TimeControl "300"]
[EndTime "14:40:57 PDT"]
[Termination "lyricalschemes won by resignation"]

1. e4 {[%clk 0:04:58.8]} 1... c5 {[%clk 0:04:57.9]} 2. Nf3 {[%clk 0:04:57.5]}
2... Nc6 {[%clk 0:04:55.4]} 3. Bb5 {[%clk 0:04:56.9]} 3... e6 {[%clk 0:04:51.8]}
4. O-O {[%clk 0:04:55.4]} 4... a6 {[%clk 0:04:50.1]} 5. Bxc6 {[%clk 0:04:54.5]}
5... bxc6 {[%clk 0:04:49.3]} 6. c3 {[%clk 0:04:54]} 6... Nf6 {[%clk 0:04:47.3]}
7. e5 {[%clk 0:04:53]} 7... Nd5 {[%clk 0:04:46.5]} 8. d4 {[%clk 0:04:52.6]} 8...
cxd4 {[%clk 0:04:45.3]} 9. cxd4 {[%clk 0:04:52.5]} 9... c5 {[%clk 0:04:44.2]}
10. Nc3 {[%clk 0:04:49]} 10... Nxc3 {[%clk 0:04:42.2]} 11. bxc3 {[%clk
0:04:47.4]} 11... cxd4 {[%clk 0:04:41.8]} 12. cxd4 {[%clk 0:04:46.4]} 12... Be7
{[%clk 0:04:41.5]} 13. d5 {[%clk 0:04:43.6]} 13... exd5 {[%clk 0:04:39.3]} 14.
Qxd5 {[%clk 0:04:42.6]} 14... Rb8 {[%clk 0:04:38.1]} 15. Bf4 {[%clk 0:04:35.7]}
15... Bb7 {[%clk 0:04:35.2]} 16. Qd3 {[%clk 0:04:33.4]} 16... O-O {[%clk
0:04:31.5]} 17. Rfd1 {[%clk 0:04:30.5]} 17... Bc6 {[%clk 0:04:29.6]} 18. Nd4
{[%clk 0:04:28.7]} 18... Qc7 {[%clk 0:04:12]} 19. Nf5 {[%clk 0:04:19.8]} 19...
Bc5 {[%clk 0:04:05.6]} 20. Qg3 {[%clk 0:04:16.3]} 20... g6 {[%clk 0:04:02.7]}
21. e6 {[%clk 0:04:12.4]} 21... d6 {[%clk 0:03:56]} 22. exf7+ {[%clk 0:04:05.2]}
22... Kh8 {[%clk 0:03:39]} 23. Qc3+ {[%clk 0:04:02.1]} 1-0

[Event "Live Chess"]
[Site "Chess.com"]
[Date "2024.06.01"]
[Round "-"]
[White "nigelst"]
[Black "Tushinskiy"]
[Result "1-0"]
[WhiteElo "1681"]
[BlackElo "2258"]
[TimeControl "300"]
[EndTime "14:41:01 PDT"]
[Termination "nigelst won by checkmate"]

1. e4 {[%clk 0:04:58.1]} 1... e5 {[%clk 0:04:52.7]} 2. Nf3 {[%clk 0:04:55.2]}
2... d6 {[%clk 0:04:47.9]} 3. d4 {[%clk 0:04:52.4]} 3... Bg4 {[%clk 0:04:46.1]}
4. dxe5 {[%clk 0:04:51.2]} 4... Nd7 {[%clk 0:04:42.6]} 5. Be2 {[%clk 0:04:43.5]}
5... dxe5 {[%clk 0:04:40.4]} 6. Nc3 {[%clk 0:04:36.7]} 6... Ngf6 {[%clk
0:04:37.3]} 7. O-O {[%clk 0:04:30.5]} 7... c6 {[%clk 0:04:34.8]} 8. h3 {[%clk
0:04:28.8]} 8... Bh5 {[%clk 0:04:31.7]} 9. Bg5 {[%clk 0:04:22.5]} 9... Qc7
{[%clk 0:04:29.5]} 10. Bh4 {[%clk 0:04:12.2]} 10... Be7 {[%clk 0:04:23]} 11. g4
{[%clk 0:04:08.1]} 11... Bg6 {[%clk 0:04:18.6]} 12. Bd3 {[%clk 0:04:04.1]} 12...
Nc5 {[%clk 0:04:15.7]} 13. Re1 {[%clk 0:04:00.2]} 13... Ne6 {[%clk 0:04:11.6]}
14. Bg3 {[%clk 0:03:57]} 14... h5 {[%clk 0:04:09]} 15. Bxe5 {[%clk 0:03:53.5]}
15... Qb6 {[%clk 0:04:07.1]} 16. g5 {[%clk 0:03:44.4]} 16... Nh7 {[%clk
0:03:56]} 17. h4 {[%clk 0:03:40.9]} 17... f6 {[%clk 0:03:55.3]} 18. gxf6 {[%clk
0:03:38.1]} 18... gxf6 {[%clk 0:03:55.2]} 19. Bg3 {[%clk 0:03:34.9]} 19... O-O-O
{[%clk 0:03:50.2]} 20. Qd2 {[%clk 0:03:26.1]} 20... Rhg8 {[%clk 0:03:38.9]} 21.
Kh2 {[%clk 0:03:21.4]} 21... Nc5 {[%clk 0:03:31.1]} 22. Rab1 {[%clk 0:03:11.1]}
22... Bd6 {[%clk 0:03:04.5]} 23. b4 {[%clk 0:02:45.5]} 23... Bxg3+ {[%clk
0:02:50.7]} 24. fxg3 {[%clk 0:02:42.3]} 24... Nxd3 {[%clk 0:02:50.2]} 25. cxd3
{[%clk 0:02:36.6]} 25... f5 {[%clk 0:02:40.6]} 26. Qe3 {[%clk 0:02:21]} 26...
fxe4 {[%clk 0:02:18.3]} 27. Qxb6 {[%clk 0:02:15.7]} 27... axb6 {[%clk
0:02:18.2]} 28. Nxe4 {[%clk 0:02:11.2]} 28... Rxd3 {[%clk 0:02:15.1]} 29. Ne5
{[%clk 0:02:09.7]} 29... Bxe4 {[%clk 0:02:11.5]} 30. Rxe4 {[%clk 0:02:07.4]}
30... Rdxg3 {[%clk 0:02:07.3]} 31. Rb2 {[%clk 0:02:03]} 31... Nf6 {[%clk
0:01:55.4]} 32. Rf4 {[%clk 0:01:59.3]} 32... Nd5 {[%clk 0:01:53.8]} 33. Rf7
{[%clk 0:01:57.1]} 33... Nf4 {[%clk 0:01:47.6]} 34. Rxf4 {[%clk 0:01:51.2]}
34... Re3 {[%clk 0:01:42.9]} 35. Nf7 {[%clk 0:01:47.2]} 35... Rgg3 {[%clk
0:01:39.5]} 36. Nd6+ {[%clk 0:01:40.6]} 36... Kc7 {[%clk 0:01:35.7]} 37. Ne8+
{[%clk 0:01:32.4]} 37... Kb8 {[%clk 0:01:33.4]} 38. Nf6 {[%clk 0:01:27.5]} 38...
Rh3+ {[%clk 0:01:31.9]} 39. Kg2 {[%clk 0:01:26.3]} 39... Reg3+ {[%clk
0:01:30.7]} 40. Kf2 {[%clk 0:01:25.1]} 40... Ra3 {[%clk 0:01:26.8]} 41. Re2
{[%clk 0:01:22.6]} 41... Rh2+ {[%clk 0:01:24]} 42. Ke1 {[%clk 0:01:18.3]} 42...
Rh1+ {[%clk 0:01:21.6]} 43. Kf2 {[%clk 0:01:11.5]} 43... Rh2+ {[%clk 0:01:19.5]}
44. Ke1 {[%clk 0:01:10.5]} 44... Rxe2+ {[%clk 0:01:18]} 45. Kxe2 {[%clk
0:01:07.9]} 45... Rxa2+ {[%clk 0:01:17.9]} 46. Kf3 {[%clk 0:01:02.3]} 46... Ra3+
{[%clk 0:01:14.4]} 47. Ke4 {[%clk 0:01:00.6]} 47... Ra4 {[%clk 0:01:13.5]} 48.
Kf5 {[%clk 0:00:59.6]} 48... Ra1 {[%clk 0:00:56.6]} 49. Nxh5 {[%clk 0:00:57]}
49... c5 {[%clk 0:00:56]} 50. bxc5 {[%clk 0:00:54.7]} 50... bxc5 {[%clk
0:00:55.9]} 51. Nf6 {[%clk 0:00:48.6]} 51... Rh1 {[%clk 0:00:54.1]} 52. Kg5
{[%clk 0:00:47.3]} 52... Kc7 {[%clk 0:00:53]} 53. h5 {[%clk 0:00:46.1]} 53... b5
{[%clk 0:00:50.2]} 54. Rh4 {[%clk 0:00:44.9]} 54... Rg1+ {[%clk 0:00:47.7]} 55.
Kf5 {[%clk 0:00:43.7]} 55... b4 {[%clk 0:00:44.1]} 56. h6 {[%clk 0:00:42]} 56...
b3 {[%clk 0:00:43.1]} 57. Nd5+ {[%clk 0:00:31.2]} 57... Kd6 {[%clk 0:00:41.5]}
58. Nc3 {[%clk 0:00:29.9]} 58... Rg3 {[%clk 0:00:39.9]} 59. Ne4+ {[%clk
0:00:26.9]} 59... Kc6 {[%clk 0:00:37.8]} 60. Nxg3 {[%clk 0:00:25.6]} 60... b2
{[%clk 0:00:37.3]} 61. Rh1 {[%clk 0:00:24.3]} 61... c4 {[%clk 0:00:36]} 62. Ne4
{[%clk 0:00:22.8]} 62... Kd5 {[%clk 0:00:34.8]} 63. h7 {[%clk 0:00:21.2]} 63...
Kd4 {[%clk 0:00:34.2]} 64. h8=Q+ {[%clk 0:00:19.6]} 64... Kd3 {[%clk 0:00:32.9]}
65. Qxb2 {[%clk 0:00:18.2]} 65... Ke3 {[%clk 0:00:31.9]} 66. Qc3+ {[%clk
0:00:17.8]} 66... Ke2 {[%clk 0:00:30.9]} 67. Qxc4+ {[%clk 0:00:17.4]} 67... Ke3
{[%clk 0:00:29.3]} 68. Qc3+ {[%clk 0:00:16.2]} 68... Ke2 {[%clk 0:00:28.5]} 69.
Rh2+ {[%clk 0:00:15.1]} 69... Kf1 {[%clk 0:00:26.9]} 70. Qa1# {[%clk 0:00:13.9]}
1-0

[Event "Live Chess"]
[Site "Chess.com"]
[Date "2024.06.01"]
[Round "-"]
[White "cymbalshift"]
[Black "CarmelJane"]
[Result "1-0"]
[WhiteElo "1562"]
[BlackElo "2067"]
[TimeControl "300"]
[EndTime "14:41:18 PDT"]
[Termination "cymbalshift won by resignation"]

1. d4 {[%clk 0:04:58.1]} 1... Nf6 {[%clk 0:04:58.1]} 2. Nc3 {[%clk 0:04:56.7]}
2... g6 {[%clk 0:04:52.8]} 3. e4 {[%clk 0:04:53.9]} 3... d6 {[%clk 0:04:50.1]}
4. f4 {[%clk 0:04:53.2]} 4... Bg7 {[%clk 0:04:48]} 5. Nf3 {[%clk 0:04:52.2]}
5... a6 {[%clk 0:04:46.7]} 6. Bd3 {[%clk 0:04:49.1]} 6... Nbd7 {[%clk
0:04:44.5]} 7. a4 {[%clk 0:04:45.2]} 7... b6 {[%clk 0:04:43.4]} 8. O-O {[%clk
0:04:42.3]} 8... Bb7 {[%clk 0:04:43]} 9. h3 {[%clk 0:04:31.9]} 9... O-O {[%clk
0:04:37.5]} 10. g4 {[%clk 0:04:30.2]} 10... c5 {[%clk 0:04:35.5]} 11. g5 {[%clk
0:04:27.7]} 11... Nh5 {[%clk 0:04:33.7]} 12. d5 {[%clk 0:04:16.6]} 12... Rc8
{[%clk 0:04:26.1]} 13. Qe1 {[%clk 0:04:07.5]} 13... c4 {[%clk 0:04:24]} 14. Be2
{[%clk 0:04:02.9]} 14... Nc5 {[%clk 0:04:22.2]} 15. f5 {[%clk 0:03:50]} 15...
Bxc3 {[%clk 0:04:15.1]} 16. bxc3 {[%clk 0:03:40.1]} 16... Nxe4 {[%clk
0:04:14.3]} 17. Nd4 {[%clk 0:03:35.4]} 17... Bxd5 {[%clk 0:04:08.3]} 18. Bxh5
{[%clk 0:03:33.3]} 18... gxh5 {[%clk 0:04:08.2]} 19. Qh4 {[%clk 0:03:19.8]}
19... f6 {[%clk 0:03:42.6]} 20. g6 {[%clk 0:03:08.3]} 20... e5 {[%clk
0:03:10.2]} 21. Qxh5 {[%clk 0:02:46.2]} 21... Rc7 {[%clk 0:03:06.3]} 22. Bh6
{[%clk 0:02:28.4]} 22... Ng3 {[%clk 0:03:03.4]} 23. Kh2 {[%clk 0:02:21.3]} 23...
Nxf1+ {[%clk 0:03:02.3]} 24. Rxf1 {[%clk 0:02:20.7]} 24... exd4 {[%clk
0:03:01.5]} 25. Rg1 {[%clk 0:02:09]} 25... Kh8 {[%clk 0:02:44.1]} 26. g7+ {[%clk
0:01:55.8]} 26... Rxg7 {[%clk 0:02:42.6]} 27. Bxg7+ {[%clk 0:01:54.4]} 27... Kg8
{[%clk 0:02:42.2]} 28. Bxf6+ {[%clk 0:01:53.4]} 1-0

[Event "Live Chess"]
[Site "Chess.com"]
[Date "2024.06.01"]
[Round "-"]
[White "MellowAesthetic"]
[Black "hapehansen"]
[Result "0-1"]
[WhiteElo "2067"]
[BlackElo "2259"]
[TimeControl "300"]
[EndTime "14:41:22 PDT"]
[Termination "hapehansen won on time"]

1. e4 {[%clk 0:04:58]} 1... d5 {[%clk 0:04:58.1]} 2. exd5 {[%clk 0:04:56.6]}
2... Qxd5 {[%clk 0:04:58]} 3. Nc3 {[%clk 0:04:55.2]} 3... Qa5 {[%clk 0:04:57.7]}
4. d4 {[%clk 0:04:54.4]} 4... Nf6 {[%clk 0:04:55.8]} 5. Nf3 {[%clk 0:04:53.3]}
5... c6 {[%clk 0:04:52.9]} 6. Ne5 {[%clk 0:04:51.9]} 6... Be6 {[%clk 0:04:48.4]}
7. Rb1 {[%clk 0:04:15]} 7... Nbd7 {[%clk 0:04:41.2]} 8. b4 {[%clk 0:04:13.1]}
8... Qc7 {[%clk 0:04:39.3]} 9. Bf4 {[%clk 0:04:04]} 9... Nxe5 {[%clk 0:04:21.5]}
10. Bxe5 {[%clk 0:04:01.9]} 10... Qd8 {[%clk 0:04:20.4]} 11. b5 {[%clk
0:03:47.3]} 11... Nd7 {[%clk 0:04:02.2]} 12. bxc6 {[%clk 0:03:40.6]} 12... bxc6
{[%clk 0:04:00.2]} 13. Bg3 {[%clk 0:03:02.6]} 13... Qa5 {[%clk 0:03:47]} 14. Qd2
{[%clk 0:03:01]} 14... Nb6 {[%clk 0:03:37.1]} 15. Be2 {[%clk 0:01:28.3]} 15...
Nc4 {[%clk 0:03:25.7]} 16. Qd3 {[%clk 0:01:26.7]} 16... g6 {[%clk 0:03:06.4]}
17. O-O {[%clk 0:01:07.2]} 17... Bg7 {[%clk 0:03:03.2]} 18. Bf3 {[%clk
0:00:58.3]} 18... Bd5 {[%clk 0:02:48.5]} 19. Nxd5 {[%clk 0:00:47.5]} 19... cxd5
{[%clk 0:02:46.1]} 20. Rfe1 {[%clk 0:00:40]} 20... e6 {[%clk 0:02:35.6]} 21. Bc7
{[%clk 0:00:16.3]} 21... Qxc7 {[%clk 0:02:31.1]} 22. Bxd5 {[%clk 0:00:15.6]}
22... O-O {[%clk 0:02:22.5]} 23. Bxc4 {[%clk 0:00:14.2]} 23... Rac8 {[%clk
0:02:18.6]} 24. Bb3 {[%clk 0:00:13.6]} 24... Rfd8 {[%clk 0:02:16.7]} 25. d5
{[%clk 0:00:10.9]} 25... exd5 {[%clk 0:02:14]} 26. Bxd5 {[%clk 0:00:10.8]} 26...
Bc3 {[%clk 0:02:06.9]} 27. Re4 {[%clk 0:00:07.7]} 27... Qd6 {[%clk 0:01:54.4]}
28. Rc4 {[%clk 0:00:06.7]} 28... Rxc4 {[%clk 0:01:40.3]} 29. Bxc4 {[%clk
0:00:06.6]} 29... Qf6 {[%clk 0:01:37]} 30. Qe2 {[%clk 0:00:04.4]} 30... Kg7
{[%clk 0:01:33.9]} 31. Rf1 {[%clk 0:00:02.6]} 31... h5 {[%clk 0:01:31.1]} 32.
Bd3 {[%clk 0:00:01.2]} 32... Bd4 {[%clk 0:01:29.3]} 33. Qe4 {[%clk 0:00:00.9]}
33... Rd7 {[%clk 0:01:26.4]} 0-1